fUST/lending_fUST_20250203
["ID","MTS","AMOUNT","RATE_DAILY","PERIOD"]
[351368031,1738545044068,-764.89,0.00016575,2]
[351368035,1738545044079,-500.0,0.00016575,2]
[351368038,1738545044089,-500.0,0.00016575,2]
[351368041,1738545044099,-599.42,0.00016575,2]
[351368043,1738545044110,-1252.96,0.00016575,2]
[351368044,1738545044120,-292.90995935,0.00016575,2]
[351368046,1738545044134,-207.09004065,0.00016575,2]
[351368048,1738545044143,-461.96917345,0.00016575,2]
[351368049,1738545044153,-503.41038447,0.00016575,2]
[351368050,1738545044163,-500.0,0.00016575,2]
[351368051,1738545044176,-1461.25,0.00016575,2]
[351368052,1738545044185,-500.0,0.00016575,2]
[351368053,1738545044195,-500.0,0.00016575,2]
[351368054,1738545044206,-500.0,0.00016575,2]
[351368055,1738545044215,-2476.7,0.00016575,2]
[351368056,1738545044225,-500.0,0.00016575,2]
[351368057,1738545044235,-500.0,0.00016575,2]
[351368058,1738545044245,-500.0,0.00016575,2]
[351368059,1738545044255,-500.0,0.00016575,2]
[351368060,1738545044264,-2652.56021808,0.00016575,2]
[351368061,1738545044281,-603.78978192,0.00016575,2]
[351368062,1738545044292,-500.0,0.00016575,2]
[351368063,1738545044302,-500.0,0.00016575,2]
[351368064,1738545044312,-500.0,0.00016575,2]
[351368065,1738545044321,-5276.12,0.00016575,2]
[351368066,1738545044331,-1376.78,0.00016575,2]
[351368067,1738545044342,-503.10761326,0.00016575,2]
[351368068,1738545044351,-500.0,0.00016575,2]
[351368069,1738545044360,-500.0,0.00016575,2]
[351368070,1738545044370,-504.68119826,0.00016575,2]
[351368071,1738545044379,-786.6,0.00016575,2]
[351368072,1738545044389,-500.0,0.00016575,2]
[351368073,1738545044399,-500.0,0.00016575,2]
[351368074,1738545044408,-660.96,0.00016575,2]
[351368075,1738545044418,-360.06930215,0.00016575,2]
[351368076,1738545044428,-734.84,0.00016575,2]
[351368077,1738545044437,-145.95740668,0.00016575,2]
[351368078,1738545044450,-125.92861127,0.00016575,2]
[351368079,1738545044459,-375.68970873,0.00016575,2]
[351368080,1738545044481,-138.27029127,0.00016575,2]
[351368081,1738545044491,-177.65870873,0.00016575,2]
[351368107,1738545046716,-360.21136699,0.00016438,2]
[351368181,1738545529179,216.0,0.00015545,10]
[351368182,1738545624654,218.797077,0.00013973,2]
[351368183,1738545760856,500.0,0.00014657,2]
[351368547,1738545930817,-1750.0,0.00020502,120]
[351368894,1738546126514,703.134414,0.00015006,2]
[351369164,1738546233063,-1000.0,0.00015208,2]
[351369165,1738546233076,-23900.0,0.00015208,2]
[351369166,1738546233086,-500.0,0.00015245,2]
[351369167,1738546233096,-1650.3566382,0.00015352,2]
[351369168,1738546233106,-300.0,0.00015544,2]
[351369169,1738546233117,-311.4120564,0.00015803,2]
[351369170,1738546233127,-500.0,0.00016047,2]
[351369171,1738546233136,-8579.07463176,0.00016172,2]
[351369172,1738546233146,-218.21616791,0.00016338,2]
[351369173,1738546233157,-151.0,0.000164,2]
[351369174,1738546233167,-14852.21075133,0.000164,2]
[351369175,1738546233178,-500.0,0.00016437,2]
[351369176,1738546233188,-217.84876155,0.00016437,2]
[351369177,1738546233204,-181.28451272,0.00016437,2]
[351369178,1738546233214,-506.58040319,0.00016438,2]
[351369179,1738546233224,-500.0,0.00016438,2]
[351369180,1738546233234,-257.15956961,0.00016438,2]
[351369181,1738546233243,-504.63281751,0.00016438,2]
[351369182,1738546233253,-500.0,0.00016438,2]
[351369183,1738546233262,-500.0,0.00016438,2]
[351369184,1738546233271,-515.40166202,0.00016438,2]
[351369185,1738546233281,-500.0,0.00016438,2]
[351369186,1738546233291,-500.0,0.00016438,2]
[351369187,1738546233301,-500.0,0.00016438,2]
[351369188,1738546233311,-500.0,0.00016438,2]
[351369189,1738546233321,-500.0,0.00016438,2]
[351369190,1738546233332,-500.0,0.00016438,2]
[351369191,1738546233344,-500.0,0.00016438,2]
[351369192,1738546233355,-500.0,0.00016438,2]
[351369193,1738546233366,-500.0,0.00016438,2]
[351369194,1738546233378,-500.0,0.00016438,2]
[351369195,1738546233392,-500.0,0.00016438,2]
[351369196,1738546233404,-500.0,0.00016438,2]
[351369197,1738546233416,-500.0,0.00016438,2]
[351369198,1738546233429,-500.0,0.00016438,2]
[351369199,1738546233444,-500.0,0.00016438,2]
[351369200,1738546233457,-500.0,0.00016438,2]
[351369201,1738546233469,-500.0,0.00016438,2]
[351369202,1738546233480,-500.0,0.00016438,2]
[351369203,1738546233491,-500.0,0.00016438,2]
[351369204,1738546233502,-500.0,0.00016438,2]
[351369205,1738546233512,-500.0,0.00016438,2]
[351369206,1738546233522,-500.0,0.00016438,2]
[351369207,1738546233533,-500.0,0.00016438,2]
[351369208,1738546233543,-500.0,0.00016438,2]
[351369209,1738546233553,-500.0,0.00016438,2]
[351369210,1738546233563,-500.0,0.00016438,2]
[351369211,1738546233574,-500.0,0.00016438,2]
[351369212,1738546233584,-500.0,0.00016438,2]
[351369213,1738546233595,-500.0,0.00016438,2]
[351369214,1738546233605,-500.0,0.00016438,2]
[351369215,1738546233616,-500.0,0.00016438,2]
[351369216,1738546233627,-500.0,0.00016438,2]
[351369217,1738546233638,-500.0,0.00016438,2]
[351369218,1738546233648,-512.25051563,0.00016438,2]
[351369219,1738546233658,-500.0,0.00016438,2]
[351369220,1738546233669,-500.0,0.00016438,2]
[351369221,1738546233679,-500.0,0.00016438,2]
[351369222,1738546233690,-305.8435059,0.00016438,2]
[351369223,1738546233709,-500.0,0.00016438,2]
[351369224,1738546233719,-500.0,0.00016438,2]
[351369225,1738546233730,-349.68867782,0.00016438,2]
[351369226,1738546233740,-284.42999807,0.00016438,2]
[351369227,1738546233750,-500.0,0.00016438,2]
[351369228,1738546233760,-500.0,0.00016438,2]
[351369229,1738546233771,-500.0,0.00016438,2]
[351369230,1738546233780,-500.0,0.00016438,2]
[351369231,1738546233790,-500.0,0.00016438,2]
[351369232,1738546233801,-500.0,0.00016438,2]
[351369233,1738546233810,-500.0,0.00016438,2]
[351369234,1738546233820,-500.0,0.00016438,2]
[351369235,1738546233830,-500.0,0.00016438,2]
[351369236,1738546233844,-510.19438406,0.00016438,2]
[351369237,1738546233853,-500.0,0.00016438,2]
[351369238,1738546233863,-500.0,0.00016438,2]
[351369239,1738546233872,-500.0,0.00016438,2]
[351369240,1738546233884,-500.0,0.00016438,2]
[351369241,1738546233894,-500.0,0.00016438,2]
[351369242,1738546233904,-500.0,0.00016438,2]
[351369243,1738546233914,-500.36594111,0.00016438,2]
[351369244,1738546233925,-500.0,0.00016438,2]
[351369245,1738546233935,-500.0,0.00016438,2]
[351369246,1738546233951,-500.0,0.00016438,2]
[351369247,1738546233961,-500.0,0.00016438,2]
[351369248,1738546233971,-500.0,0.00016438,2]
[351369249,1738546233981,-504.49747902,0.00016438,2]
[351369250,1738546233991,-500.0,0.00016438,2]
[351369251,1738546234000,-500.0,0.00016438,2]
[351369252,1738546234010,-500.0,0.00016438,2]
[351369254,1738546234020,-500.0,0.00016438,2]
[351369255,1738546234029,-563.33282582,0.00016438,2]
[351369256,1738546234039,-500.0,0.00016438,2]
[351369257,1738546234049,-500.0,0.00016438,2]
[351369258,1738546234059,-500.0,0.00016438,2]
[351369259,1738546234069,-500.0,0.00016438,2]
[351369260,1738546234078,-500.0,0.00016438,2]
[351369262,1738546234088,-460.52286005,0.00016438,2]
[351369264,1738546234098,-500.0,0.00016438,2]
[351369266,1738546234107,-500.0,0.00016438,2]
[351369268,1738546234117,-500.0,0.00016438,2]
[351369270,1738546234126,-500.0,0.00016438,2]
[351369271,1738546234136,-500.0,0.00016438,2]
[351369273,1738546234146,-113.69584033,0.00016438,2]
[351369274,1738546234161,-352.6483594,0.00016438,2]
[351369318,1738546238953,-33.65580027,0.00016438,2]
[351369319,1738546238964,-500.0,0.00016438,2]
[351369320,1738546238973,-76.88216883,0.00016438,2]
[351369321,1738546238986,-423.11783117,0.00016438,2]
[351369322,1738546238996,-500.0,0.00016438,2]
[351369323,1738546239006,-501.44963769,0.00016438,2]
[351369324,1738546239016,-500.0,0.00016438,2]
[351369325,1738546239026,-500.0,0.00016438,2]
[351369326,1738546239036,-238.51535731,0.00016438,2]
[351369327,1738546239046,-500.0,0.00016438,2]
[351369328,1738546239056,-500.0,0.00016438,2]
[351369329,1738546239065,-500.0,0.00016438,2]
[351369330,1738546239075,-500.0,0.00016438,2]
[351369331,1738546239084,-500.0,0.00016438,2]
[351369332,1738546239094,-500.0,0.00016438,2]
[351369333,1738546239103,-500.0,0.00016438,2]
[351369334,1738546239113,-500.0,0.00016438,2]
[351369335,1738546239123,-504.21712507,0.00016438,2]
[351369336,1738546239132,-500.0,0.00016438,2]
[351369337,1738546239143,-500.0,0.00016438,2]
[351369338,1738546239154,-500.0,0.00016438,2]
[351369339,1738546239164,-510.08104898,0.00016438,2]
[351369340,1738546239174,-504.51614738,0.00016438,2]
[351369341,1738546239183,-500.88242875,0.00016438,2]
[351369342,1738546239194,-500.0,0.00016438,2]
[351369343,1738546239207,-500.0,0.00016438,2]
[351369344,1738546239217,-500.0,0.00016438,2]
[351369345,1738546239227,-500.0,0.00016438,2]
[351369346,1738546239237,-500.0,0.00016438,2]
[351369347,1738546239247,-500.0,0.00016438,2]
[351369348,1738546239257,-500.0,0.00016438,2]
[351369349,1738546239268,-500.0,0.00016438,2]
[351369350,1738546239277,-500.0,0.00016438,2]
[351369351,1738546239287,-466.12139447,0.00016438,2]
[351369352,1738546239299,-91.29860553,0.00016438,2]
[351369353,1738546239310,-500.0,0.00016438,2]
[351369354,1738546239320,-299.35667919,0.00016438,2]
[351369355,1738546239330,-500.0,0.00016438,2]
[351369356,1738546239339,-500.0,0.00016438,2]
[351369357,1738546239349,-500.0,0.00016438,2]
[351369358,1738546239359,-500.0,0.00016438,2]
[351369359,1738546239368,-500.0,0.00016438,2]
[351369360,1738546239378,-500.0,0.00016438,2]
[351369361,1738546239388,-500.0,0.00016438,2]
[351369362,1738546239398,-500.0,0.00016438,2]
[351369363,1738546239407,-500.0,0.00016438,2]
[351369364,1738546239527,-500.0,0.00016438,2]
[351369365,1738546239538,-500.0,0.00016438,2]
[351369366,1738546239549,-500.0,0.00016438,2]
[351369367,1738546239558,-500.0,0.00016438,2]
[351369368,1738546239568,-500.0,0.00016438,2]
[351369369,1738546239578,-500.0,0.00016438,2]
[351369370,1738546239588,-500.0,0.00016438,2]
[351369371,1738546239597,-500.0,0.00016438,2]
[351369372,1738546239606,-500.0,0.00016438,2]
[351369373,1738546239615,-500.0,0.00016438,2]
[351369374,1738546239625,-500.78059609,0.00016438,2]
[351369375,1738546239634,-500.0,0.00016438,2]
[351369376,1738546239644,-500.0,0.00016438,2]
[351369377,1738546239653,-500.0,0.00016438,2]
[351369378,1738546239663,-500.0,0.00016438,2]
[351369379,1738546239673,-500.0,0.00016438,2]
[351369380,1738546239682,-500.0,0.00016438,2]
[351369381,1738546239692,-508.50164332,0.00016438,2]
[351369382,1738546239708,-500.0,0.00016438,2]
[351369383,1738546239717,-500.0,0.00016438,2]
[351369384,1738546239728,-500.0,0.00016438,2]
[351369385,1738546239738,-500.0,0.00016438,2]
[351369386,1738546239747,-500.0,0.00016438,2]
[351369387,1738546239757,-500.0,0.00016438,2]
[351369388,1738546239767,-500.0,0.00016438,2]
[351369389,1738546239776,-258.92923461,0.00016438,2]
[351369390,1738546239786,-500.0,0.00016438,2]
[351369391,1738546239795,-500.0,0.00016438,2]
[351369392,1738546239804,-500.0,0.00016438,2]
[351369393,1738546239813,-500.0,0.00016438,2]
[351369394,1738546239823,-474.1262633,0.00016438,2]
[351369395,1738546239833,-500.0,0.00016438,2]
[351369396,1738546239844,-500.0,0.00016438,2]
[351369397,1738546239853,-221.23041407,0.00016438,2]
[351369398,1738546239867,-1248.31,0.00016438,2]
[351369399,1738546239878,-6128.74,0.00016438,2]
[351369400,1738546239888,-500.0,0.00016438,2]
[351369401,1738546239897,-500.0,0.00016438,2]
[351369402,1738546239907,-612.73,0.00016438,2]
[351369403,1738546239917,-1450.83,0.00016438,2]
[351369404,1738546239936,-500.0,0.00016438,2]
[351369405,1738546239950,-500.0,0.00016438,2]
[351369406,1738546239960,-500.0,0.00016438,2]
[351369407,1738546239970,-500.0,0.00016438,2]
[351369408,1738546239979,-500.0,0.00016438,2]
[351369409,1738546239989,-500.0,0.00016438,2]
[351369410,1738546239998,-500.0,0.00016438,2]
[351369411,1738546240008,-779.69,0.00016438,2]
[351369412,1738546240017,-500.0,0.00016438,2]
[351369413,1738546240027,-613.46842821,0.00016438,2]
[351369414,1738546240036,-407.78006947,0.00016438,2]
[351369415,1738546240046,-500.0,0.00016438,2]
[351369416,1738546240055,-1458.9,0.00016438,2]
[351369417,1738546240065,-500.0,0.00016438,2]
[351369418,1738546240074,-500.0,0.00016438,2]
[351369420,1738546240084,-500.0,0.00016438,2]
[351369421,1738546240094,-500.0,0.00016438,2]
[351369422,1738546240104,-500.0,0.00016438,2]
[351369423,1738546240113,-500.0,0.00016438,2]
[351369424,1738546240123,-500.0,0.00016438,2]
[351369425,1738546240132,-500.0,0.00016438,2]
[351369427,1738546240142,-646.60021404,0.00016438,2]
[351369428,1738546240152,-500.0,0.00016438,2]
[351369430,1738546240162,-500.0,0.00016438,2]
[351369432,1738546240172,-2441.06,0.00016438,2]
[351369434,1738546240182,-578.88617234,0.00016438,2]
[351369436,1738546240192,-500.0,0.00016438,2]
[351369438,1738546240208,-500.0,0.00016438,2]
[351369439,1738546240218,-500.0,0.00016438,2]
[351369440,1738546240228,-500.0,0.00016438,2]
[351369441,1738546240238,-500.0,0.00016438,2]
[351369443,1738546240248,-500.0,0.00016438,2]
[351369444,1738546240258,-500.0,0.00016438,2]
[351369446,1738546240269,-500.0,0.00016438,2]
[351369447,1738546240279,-500.0,0.00016438,2]
[351369448,1738546240288,-500.0,0.00016438,2]
[351369449,1738546240298,-500.0,0.00016438,2]
[351369450,1738546240308,-500.0,0.00016438,2]
[351369451,1738546240318,-500.29942088,0.00016438,2]
[351369452,1738546240328,-1895.57,0.00016438,2]
[351369453,1738546240338,-500.0,0.00016438,2]
[351369454,1738546240347,-500.0,0.00016438,2]
[351369455,1738546240357,-5326.84,0.00016438,2]
[351369456,1738546240367,-500.0,0.00016438,2]
[351369458,1738546240376,-500.0,0.00016438,2]
[351369459,1738546240385,-500.0,0.00016438,2]
[351369460,1738546240394,-500.0,0.00016438,2]
[351369461,1738546240404,-500.0,0.00016438,2]
[351369462,1738546240414,-500.0,0.00016438,2]
[351369463,1738546240424,-500.0,0.00016438,2]
[351369464,1738546240434,-500.0,0.00016438,2]
[351369465,1738546240444,-500.0,0.00016438,2]
[351369466,1738546240459,-4076.4,0.00016438,2]
[351369467,1738546240469,-500.0,0.00016438,2]
[351369468,1738546240478,-4076.4,0.00016438,2]
[351369469,1738546240488,-4076.4,0.00016438,2]
[351369470,1738546240498,-523.69,0.00016438,2]
[351369471,1738546240507,-4076.4,0.00016438,2]
[351369472,1738546240517,-4076.4,0.00016438,2]
[351369473,1738546240527,-4076.4,0.00016438,2]
[351369474,1738546240536,-4076.4,0.00016438,2]
[351369475,1738546240547,-4076.4,0.00016438,2]
[351369476,1738546240556,-500.0,0.00016438,2]
[351369477,1738546240566,-4076.4,0.00016438,2]
[351369478,1738546240576,-500.99,0.00016438,2]
[351369479,1738546240586,-755.62,0.00016438,2]
[351369480,1738546240595,-500.0,0.00016438,2]
[351369481,1738546240605,-408.94141889,0.00016438,2]
[351369482,1738546240614,-500.0,0.00016438,2]
[351369483,1738546240623,-500.0,0.00016438,2]
[351369484,1738546240633,-1381.52,0.00016438,2]
[351369485,1738546240643,-500.0,0.00016438,2]
[351369486,1738546240653,-500.0,0.00016438,2]
[351369487,1738546240662,-500.0,0.00016438,2]
[351369488,1738546240672,-500.0,0.00016438,2]
[351369489,1738546240681,-500.0,0.00016438,2]
[351369490,1738546240690,-500.0,0.00016438,2]
[351369491,1738546240703,-677.66,0.00016438,2]
[351369492,1738546240713,-500.0,0.00016438,2]
[351369493,1738546240722,-500.0,0.00016438,2]
[351369494,1738546240732,-500.0,0.00016438,2]
[351369495,1738546240741,-500.0,0.00016438,2]
[351369496,1738546240751,-500.0,0.00016438,2]
[351369497,1738546240760,-500.0,0.00016438,2]
[351369498,1738546240770,-534.21,0.00016438,2]
[351369499,1738546240779,-509.88910537,0.00016438,2]
[351369500,1738546240788,-5776.74,0.00016438,2]
[351369501,1738546240798,-500.0,0.00016438,2]
[351369502,1738546240808,-500.0,0.00016438,2]
[351369503,1738546240817,-500.0,0.00016438,2]
[351369504,1738546240827,-500.0,0.00016438,2]
[351369505,1738546240837,-500.0,0.00016438,2]
[351369506,1738546240847,-500.0,0.00016438,2]
[351369507,1738546240858,-500.0,0.00016438,2]
[351369509,1738546240869,-594.05,0.00016438,2]
[351369511,1738546240879,-594.05,0.00016438,2]
[351369512,1738546240888,-594.05,0.00016438,2]
[351369514,1738546240898,-594.05,0.00016438,2]
[351369515,1738546240908,-500.0,0.00016438,2]
[351369516,1738546240917,-594.05,0.00016438,2]
[351369518,1738546240927,-594.05,0.00016438,2]
[351369519,1738546240937,-594.05,0.00016438,2]
[351369520,1738546240947,-500.0,0.00016438,2]
[351369521,1738546240962,-582.91909789,0.00016438,2]
[351369522,1738546240971,-500.61550216,0.00016438,2]
[351369524,1738546240981,-790.65,0.00016438,2]
[351369526,1738546240991,-500.0,0.00016438,2]
[351369528,1738546241001,-500.0,0.00016438,2]
[351369530,1738546241010,-500.0,0.00016438,2]
[351369531,1738546241020,-500.0,0.00016438,2]
[351369532,1738546241030,-500.0,0.00016438,2]
[351369533,1738546241039,-500.0,0.00016438,2]
[351369535,1738546241048,-500.0,0.00016438,2]
[351369537,1738546241058,-500.0,0.00016438,2]
[351369538,1738546241067,-500.0,0.00016438,2]
[351369539,1738546241077,-500.0,0.00016438,2]
[351369540,1738546241086,-500.0,0.00016438,2]
[351369541,1738546241096,-500.0,0.00016438,2]
[351369542,1738546241106,-500.0,0.00016438,2]
[351369544,1738546241116,-701.64,0.00016438,2]
[351369545,1738546241125,-604.68,0.00016438,2]
[351369547,1738546241134,-500.0,0.00016438,2]
[351369550,1738546241143,-500.0,0.00016438,2]
[351369551,1738546241153,-500.0,0.00016438,2]
[351369552,1738546241162,-500.0,0.00016438,2]
[351369553,1738546241171,-500.0,0.00016438,2]
[351369554,1738546241181,-500.0,0.00016438,2]
[351369555,1738546241191,-500.0,0.00016438,2]
[351369556,1738546241205,-500.0,0.00016438,2]
[351369557,1738546241215,-1522.33,0.00016438,2]
[351369558,1738546241224,-500.0,0.00016438,2]
[351369559,1738546241234,-500.0,0.00016438,2]
[351369560,1738546241243,-500.0,0.00016438,2]
[351369561,1738546241253,-500.0,0.00016438,2]
[351369562,1738546241262,-500.0,0.00016438,2]
[351369563,1738546241272,-500.0,0.00016438,2]
[351369564,1738546241281,-500.0,0.00016438,2]
[351369565,1738546241290,-500.0,0.00016438,2]
[351369566,1738546241300,-1604.87,0.00016438,2]
[351369567,1738546241311,-500.0,0.00016438,2]
[351369568,1738546241320,-500.0,0.00016438,2]
[351369569,1738546241330,-500.0,0.00016438,2]
[351369570,1738546241339,-663.04,0.00016438,2]
[351369571,1738546241349,-2281.67,0.00016438,2]
[351369572,1738546241358,-3649.73,0.00016438,2]
[351369573,1738546241367,-616.74,0.00016438,2]
[351369574,1738546241377,-500.0,0.00016438,2]
[351369575,1738546241387,-500.0,0.00016438,2]
[351369576,1738546241396,-500.0,0.00016438,2]
[351369577,1738546241406,-502.72380152,0.00016438,2]
[351369578,1738546241415,-500.0,0.00016438,2]
[351369579,1738546241425,-500.0,0.00016438,2]
[351369580,1738546241435,-500.0,0.00016438,2]
[351369581,1738546241446,-420.24181368,0.00016438,2]
[351369582,1738546241460,-500.0,0.00016438,2]
[351369583,1738546241470,-502.31232962,0.00016438,2]
[351369584,1738546241479,-501.07585856,0.00016438,2]
[351369585,1738546241489,-502.76177187,0.00016438,2]
[351369586,1738546241498,-500.0,0.00016438,2]
[351369587,1738546241508,-505.04573258,0.00016438,2]
[351369588,1738546241517,-500.80639629,0.00016438,2]
[351369589,1738546241527,-506.09160592,0.00016438,2]
[351369590,1738546241536,-506.59786161,0.00016438,2]
[351369591,1738546241546,-500.0,0.00016438,2]
[351369592,1738546241555,-500.0,0.00016438,2]
[351369593,1738546241566,-503.36448919,0.00016438,2]
[351369594,1738546241575,-504.96586727,0.00016438,2]
[351369595,1738546241585,-153.33183055,0.00016438,2]
[351369596,1738546241595,-500.0,0.00016438,2]
[351369597,1738546241604,-501.6540517,0.00016438,2]
[351369598,1738546241615,-500.0,0.00016438,2]
[351369599,1738546241624,-501.5853668,0.00016438,2]
[351369600,1738546241634,-503.5954256,0.00016438,2]
[351369601,1738546241643,-500.0,0.00016438,2]
[351369602,1738546241653,-503.91035999,0.00016473,2]
[351369603,1738546241663,-151.0,0.000165,2]
[351369604,1738546241672,-500.0,0.00016573,2]
[351369605,1738546241682,-410.82361276,0.00016573,2]
[351369606,1738546241692,-4076.4,0.00016574,2]
[351369607,1738546241706,-4076.4,0.00016574,2]
[351369608,1738546241715,-4076.4,0.00016574,2]
[351369609,1738546241725,-4076.4,0.00016574,2]
[351369610,1738546241735,-4076.4,0.00016574,2]
[351369611,1738546241744,-594.05,0.00016574,2]
[351369612,1738546241754,-594.05,0.00016574,2]
[351369613,1738546241764,-594.05,0.00016574,2]
[351369614,1738546241774,-594.05,0.00016574,2]
[351369615,1738546241783,-594.05,0.00016574,2]
[351369616,1738546241793,-23260.97132025,0.00016575,5]
[351369617,1738546241803,-114616.24125925,0.00016575,5]
[351369618,1738546241812,-282.32,0.00016575,2]
[351369619,1738546241822,-500.0,0.00016575,2]
[351369620,1738546241832,-500.0,0.00016575,2]
[351369622,1738546241935,-500.0,0.00016575,2]
[351369623,1738546241945,-500.0,0.00016575,2]
[351369624,1738546241959,-510.74572264,0.00016575,2]
[351369625,1738546241971,-500.0,0.00016575,2]
[351369626,1738546241981,-500.0,0.00016575,2]
[351369627,1738546241992,-500.0,0.00016575,2]
[351369628,1738546242002,-500.0,0.00016575,2]
[351369629,1738546242012,-500.0,0.00016575,2]
[351369630,1738546242022,-500.0,0.00016575,2]
[351369631,1738546242031,-500.0,0.00016575,2]
[351369633,1738546242041,-500.0,0.00016575,2]
[351369634,1738546242051,-500.0,0.00016575,2]
[351369635,1738546242060,-500.0,0.00016575,2]
[351369637,1738546242070,-500.0,0.00016575,2]
[351369638,1738546242080,-500.0,0.00016575,2]
[351369639,1738546242090,-500.0,0.00016575,2]
[351369640,1738546242100,-484.17955725,0.00016575,2]
[351369641,1738546242110,-500.0,0.00016575,2]
[351369642,1738546242119,-500.0,0.00016575,2]
[351369643,1738546242129,-500.0,0.00016575,2]
[351369644,1738546242144,-500.0,0.00016575,2]
[351369645,1738546242154,-500.0,0.00016575,2]
[351369646,1738546242163,-500.0,0.00016575,2]
[351369647,1738546242173,-500.0,0.00016575,2]
[351369648,1738546242182,-500.0,0.00016575,2]
[351369649,1738546242192,-500.0,0.00016575,2]
[351369650,1738546242206,-595.02096461,0.00016575,2]
[351369651,1738546242215,-500.0,0.00016575,2]
[351369652,1738546242225,-500.0,0.00016575,2]
[351369653,1738546242236,-500.0,0.00016575,2]
[351369654,1738546242247,-500.0,0.00016575,2]
[351369655,1738546242258,-500.0,0.00016575,2]
[351369656,1738546242267,-428.1464377,0.00016575,2]
[351369657,1738546242277,-500.0,0.00016575,2]
[351369658,1738546242286,-500.0,0.00016575,2]
[351369659,1738546242296,-500.0,0.00016575,2]
[351369660,1738546242306,-500.0,0.00016575,2]
[351369661,1738546242316,-442.0669871,0.00016575,2]
[351369662,1738546242326,-500.0,0.00016575,2]
[351369663,1738546242335,-202.88801006,0.00016575,2]
[351369664,1738546242344,-500.0,0.00016575,2]
[351369665,1738546242354,-576.62687558,0.00016575,2]
[351369666,1738546242363,-500.0,0.00016575,2]
[351369667,1738546242374,-500.0,0.00016575,2]
[351369668,1738546242384,-500.0,0.00016575,2]
[351369669,1738546242394,-500.0,0.00016575,2]
[351369670,1738546242404,-500.0,0.00016575,2]
[351369671,1738546242414,-500.0,0.00016575,2]
[351369672,1738546242424,-500.0,0.00016575,2]
[351369673,1738546242434,-636.3975098,0.00016575,2]
[351369674,1738546242444,-500.0,0.00016575,2]
[351369675,1738546242458,-500.0,0.00016575,2]
[351369676,1738546242468,-500.0,0.00016575,2]
[351369677,1738546242478,-500.0,0.00016575,2]
[351369678,1738546242488,-500.0,0.00016575,2]
[351369679,1738546242498,-500.0,0.00016575,2]
[351369681,1738546242507,-500.0,0.00016575,2]
[351369682,1738546242519,-500.0,0.00016575,2]
[351369683,1738546242529,-500.0,0.00016575,2]
[351369684,1738546242538,-485.93760016,0.00016575,2]
[351369685,1738546242547,-500.0,0.00016575,2]
[351369686,1738546242557,-500.0,0.00016575,2]
[351369687,1738546242566,-509.46946933,0.00016575,2]
[351369688,1738546242576,-500.0,0.00016575,2]
[351369689,1738546242586,-500.0,0.00016575,2]
[351369690,1738546242595,-557.42,0.00016575,2]
[351369691,1738546242605,-500.0,0.00016575,2]
[351369692,1738546242615,-500.0,0.00016575,2]
[351369693,1738546242625,-500.0,0.00016575,2]
[351369694,1738546242635,-515.17096527,0.00016575,2]